[Event "Titled Tuesday Blitz February 21 Late 2023"]
[White "Rasulov, Vugar"]
[Black "Rorrer, Grayson"]
[WhiteFideId "13402390"]
[BlackFideId "30944996"]
[WhiteElo "2523"]
[BlackElo "2263"]
[Result "0-1"]
[Round "03"]
[TimeControl "180+2"]
[Date "2023.02.21"]
[WhiteClock "0:00:09"]
[BlackClock "0:00:20"]

1. Nf3 {[%clk 0:03:00]}  Nf6 {[%clk 0:02:59]} 2. c4 {[%clk 0:03:01]}  g6 {[%clk 0:02:57]} 3. Nc3 {[%clk 0:03:00]}  d5 {[%clk 0:02:57]} 4. cxd5 {[%clk 0:02:59]}  Nxd5 {[%clk 0:02:58]} 5. h4 {[%clk 0:02:59]}  Bg7 {[%clk 0:02:56]} 6. h5 {[%clk 0:02:59]}  Nxc3 {[%clk 0:02:56]} 7. bxc3 {[%clk 0:02:59]}  c5 {[%clk 0:02:55]} 8. Rb1 {[%clk 0:02:54]}  Nc6 {[%clk 0:02:55]} 9. e4 {[%clk 0:02:51]}  Qc7 {[%clk 0:02:54]} 10. Be2 {[%clk 0:02:43]}  Bg4 {[%clk 0:02:48]} 11. h6 {[%clk 0:02:42]}  Bf6 {[%clk 0:02:48]} 12. Qa4 {[%clk 0:02:40]}  O-O {[%clk 0:02:46]} 13. O-O {[%clk 0:02:33]}  Rfd8 {[%clk 0:02:40]} 14. Re1 {[%clk 0:02:31]}  a6 {[%clk 0:02:31]} 15. e5 {[%clk 0:02:25]}  Nxe5 {[%clk 0:02:27]} 16. Nxe5 {[%clk 0:02:26]}  Bxe2 {[%clk 0:02:27]} 17. Nxf7 {[%clk 0:02:26]}  Bb5 {[%clk 0:02:25]} 18. Qe4 {[%clk 0:01:42]}  Kxf7 {[%clk 0:02:22]} 19. d4 {[%clk 0:01:42]}  cxd4 {[%clk 0:02:17]} 20. cxd4 {[%clk 0:01:33]}  Qc6 {[%clk 0:02:13]} 21. Qe3 {[%clk 0:01:20]}  Rxd4 {[%clk 0:01:54]} 22. Bb2 {[%clk 0:01:18]}  Rd7 {[%clk 0:01:54]} 23. Bxf6 {[%clk 0:01:07]}  exf6 {[%clk 0:01:42]} 24. Rbc1 {[%clk 0:00:58]}  Qd6 {[%clk 0:01:38]} 25. Rcd1 {[%clk 0:00:55]}  Qc6 {[%clk 0:01:23]} 26. Rc1 {[%clk 0:00:45]}  Bc4 {[%clk 0:01:23]} 27. a4 {[%clk 0:00:36]}  Rc7 {[%clk 0:01:09]} 28. a5 {[%clk 0:00:30]}  Re8 {[%clk 0:01:07]} 29. Qf4 {[%clk 0:00:24]}  Rxe1+ {[%clk 0:01:03]} 30. Rxe1 {[%clk 0:00:25]}  Be6 {[%clk 0:00:54]} 31. Rd1 {[%clk 0:00:25]}  Rd7 {[%clk 0:00:53]} 32. Rc1 {[%clk 0:00:25]}  Qd6 {[%clk 0:00:51]} 33. Qe3 {[%clk 0:00:24]}  Rc7 {[%clk 0:00:45]} 34. Re1 {[%clk 0:00:23]}  Re7 {[%clk 0:00:44]} 35. Qa7 {[%clk 0:00:18]}  Bd5 {[%clk 0:00:34]} 36. Rd1 {[%clk 0:00:17]}  Qc7 {[%clk 0:00:34]} 37. Qd4 {[%clk 0:00:13]}  Rd7 {[%clk 0:00:30]} 38. Re1 {[%clk 0:00:11]}  Qxa5 {[%clk 0:00:26]} 39. Qe3 {[%clk 0:00:10]}  Qd8 {[%clk 0:00:27]} 40. Qc5 {[%clk 0:00:08]}  Be6 {[%clk 0:00:22]} 41. Qb4 {[%clk 0:00:05]}  b5 {[%clk 0:00:19]} 42. Kh2 {[%clk 0:00:04]}  Rd4 {[%clk 0:00:18]} 43. Qc5 {[%clk 0:00:04]}  Qd6+ {[%clk 0:00:18]} 44. Qxd6 {[%clk 0:00:04]}  Rxd6 {[%clk 0:00:19]} 45. Rc1 {[%clk 0:00:04]}  g5 {[%clk 0:00:18]} 46. Rc7+ {[%clk 0:00:04]}  Kg6 {[%clk 0:00:19]} 47. f3 {[%clk 0:00:04]}  Kxh6 {[%clk 0:00:19]} 48. g4 {[%clk 0:00:05]}  Kg6 {[%clk 0:00:20]} 49. Kg3 {[%clk 0:00:05]}  h5 {[%clk 0:00:19]} 50. gxh5+ {[%clk 0:00:06]}  Kxh5 {[%clk 0:00:20]} 51. Ra7 {[%clk 0:00:06]}  Kg6 {[%clk 0:00:21]} 52. Rc7 {[%clk 0:00:06]}  a5 {[%clk 0:00:21]} 53. Ra7 {[%clk 0:00:07]}  a4 {[%clk 0:00:21]} 54. Rb7 {[%clk 0:00:07]}  Bc4 {[%clk 0:00:21]} 55. Rb8 {[%clk 0:00:07]}  Rd3 {[%clk 0:00:22]} 56. Rg8+ {[%clk 0:00:07]}  Bxg8 {[%clk 0:00:21]} 57. Kg4 {[%clk 0:00:07]}  Be6+ {[%clk 0:00:19]} 58. Kg3 {[%clk 0:00:06]}  Bd5 {[%clk 0:00:19]} 59. Kh2 {[%clk 0:00:07]}  Bxf3 {[%clk 0:00:18]} 60. Kg1 {[%clk 0:00:08]}  Rd2 {[%clk 0:00:18]} 61. Kf1 {[%clk 0:00:08]}  Re2 {[%clk 0:00:18]} 62. Kg1 {[%clk 0:00:09]}  a3 {[%clk 0:00:19]} 63. Kf1 {[%clk 0:00:09]}  a2 {[%clk 0:00:20]} 0-1


[Site "https://www.chess.com"]

[Event "Titled Tuesday Blitz February 21 Late 2023"]
[White "Ibarra Jerez, Jose Carlos"]
[Black "Perske, Thore"]
[WhiteFideId "2226332"]
[BlackFideId "12902195"]
[WhiteElo "2563"]
[BlackElo "2448"]
[Result "1-0"]
[Round "03"]
[TimeControl "180+2"]
[Date "2023.02.21"]
[WhiteClock "0:00:08"]
[BlackClock "0:00:06"]

1. e4 {[%clk 0:02:59]}  e6 {[%clk 0:03:00]} 2. d4 {[%clk 0:02:59]}  d5 {[%clk 0:03:00]} 3. Nd2 {[%clk 0:02:59]}  c5 {[%clk 0:03:00]} 4. exd5 {[%clk 0:02:58]}  exd5 {[%clk 0:03:01]} 5. Ngf3 {[%clk 0:02:59]}  a6 {[%clk 0:03:02]} 6. Be2 {[%clk 0:02:52]}  Nf6 {[%clk 0:02:51]} 7. O-O {[%clk 0:02:51]}  Be7 {[%clk 0:02:51]} 8. dxc5 {[%clk 0:02:37]}  Bxc5 {[%clk 0:02:52]} 9. a3 {[%clk 0:02:35]}  O-O {[%clk 0:02:51]} 10. b4 {[%clk 0:02:35]}  Bb6 {[%clk 0:02:52]} 11. Bb2 {[%clk 0:02:32]}  Nc6 {[%clk 0:02:50]} 12. c4 {[%clk 0:02:32]}  dxc4 {[%clk 0:02:42]} 13. Nxc4 {[%clk 0:02:31]}  Ba7 {[%clk 0:02:01]} 14. Qc2 {[%clk 0:02:04]}  h6 {[%clk 0:01:45]} 15. Rad1 {[%clk 0:01:57]}  Qe7 {[%clk 0:01:45]} 16. Nfe5 {[%clk 0:01:29]}  Nxe5 {[%clk 0:01:31]} 17. Bxe5 {[%clk 0:01:29]}  Re8 {[%clk 0:01:28]} 18. Bf3 {[%clk 0:01:22]}  Bb8 {[%clk 0:00:58]} 19. Rfe1 {[%clk 0:01:11]}  Bxe5 {[%clk 0:00:57]} 20. Rxe5 {[%clk 0:00:57]}  Qc7 {[%clk 0:00:55]} 21. Rxe8+ {[%clk 0:00:44]}  Nxe8 {[%clk 0:00:56]} 22. Qe4 {[%clk 0:00:44]}  Nf6 {[%clk 0:00:44]} 23. Qd4 {[%clk 0:00:44]}  Be6 {[%clk 0:00:38]} 24. Na5 {[%clk 0:00:42]}  Rb8 {[%clk 0:00:34]} 25. Qd6 {[%clk 0:00:33]}  Qxd6 {[%clk 0:00:15]} 26. Rxd6 {[%clk 0:00:34]}  b6 {[%clk 0:00:15]} 27. Nc6 {[%clk 0:00:34]}  Re8 {[%clk 0:00:15]} 28. h3 {[%clk 0:00:33]}  Bd7 {[%clk 0:00:12]} 29. Nd4 {[%clk 0:00:32]}  Rb8 {[%clk 0:00:11]} 30. Bc6 {[%clk 0:00:29]}  Be8 {[%clk 0:00:09]} 31. a4 {[%clk 0:00:24]}  Kf8 {[%clk 0:00:09]} 32. b5 {[%clk 0:00:25]}  Ke7 {[%clk 0:00:08]} 33. Nf5+ {[%clk 0:00:25]}  Kf8 {[%clk 0:00:07]} 34. Nxh6 {[%clk 0:00:22]}  axb5 {[%clk 0:00:07]} 35. axb5 {[%clk 0:00:22]}  Bxc6 {[%clk 0:00:05]} 36. Rxc6 {[%clk 0:00:19]}  Nd5 {[%clk 0:00:01]} 37. Nf5 {[%clk 0:00:19]}  Ne7 {[%clk 0:00:01]} 38. Nxe7 {[%clk 0:00:18]}  Kxe7 {[%clk 0:00:02]} 39. g3 {[%clk 0:00:16]}  g6 {[%clk 0:00:03]} 40. Kg2 {[%clk 0:00:17]}  Rb7 {[%clk 0:00:04]} 41. Kf3 {[%clk 0:00:17]}  Kf8 {[%clk 0:00:03]} 42. h4 {[%clk 0:00:17]}  Ke7 {[%clk 0:00:04]} 43. Kf4 {[%clk 0:00:17]}  Ra7 {[%clk 0:00:04]} 44. Rxb6 {[%clk 0:00:17]}  Ra4+ {[%clk 0:00:05]} 45. Kg5 {[%clk 0:00:15]}  Ra2 {[%clk 0:00:05]} 46. f4 {[%clk 0:00:15]}  Ra3 {[%clk 0:00:05]} 47. g4 {[%clk 0:00:15]}  Ra5 {[%clk 0:00:06]} 48. h5 {[%clk 0:00:14]}  gxh5 {[%clk 0:00:06]} 49. gxh5 {[%clk 0:00:14]}  Ra1 {[%clk 0:00:07]} 50. h6 {[%clk 0:00:13]}  Rg1+ {[%clk 0:00:07]} 51. Kf5 {[%clk 0:00:14]}  Rh1 {[%clk 0:00:08]} 52. Rb7+ {[%clk 0:00:12]}  Ke8 {[%clk 0:00:08]} 53. Rb8+ {[%clk 0:00:09]}  Ke7 {[%clk 0:00:08]} 54. Rb7+ {[%clk 0:00:08]}  Ke8 {[%clk 0:00:08]} 55. Rb6 {[%clk 0:00:09]}  Rh5+ {[%clk 0:00:08]} 56. Kg4 {[%clk 0:00:09]}  Rh1 {[%clk 0:00:08]} 57. Kg5 {[%clk 0:00:08]}  Ke7 {[%clk 0:00:07]} 58. Rb7+ {[%clk 0:00:07]}  Ke6 {[%clk 0:00:07]} 59. f5+ {[%clk 0:00:08]}  Ke5 {[%clk 0:00:07]} 60. Re7+ {[%clk 0:00:08]}  Kd6 {[%clk 0:00:04]} 61. Rxf7 {[%clk 0:00:09]}  Rg1+ {[%clk 0:00:05]} 62. Kf6 {[%clk 0:00:09]}  Rh1 {[%clk 0:00:06]} 63. Kg7 {[%clk 0:00:10]}  Rg1+ {[%clk 0:00:06]} 64. Kf8 {[%clk 0:00:09]}  Rh1 {[%clk 0:00:06]} 65. h7 {[%clk 0:00:09]}  Ke5 {[%clk 0:00:04]} 66. Kg8 {[%clk 0:00:09]}  Kd5 {[%clk 0:00:04]} 67. h8=Q {[%clk 0:00:09]}  Kc5 {[%clk 0:00:04]} 68. Qxh1 {[%clk 0:00:09]}  Kxb5 {[%clk 0:00:05]} 69. Qd5+ {[%clk 0:00:09]}  Kb6 {[%clk 0:00:06]} 70. Rb7+ {[%clk 0:00:09]}  Ka6 {[%clk 0:00:06]} 71. Qb5# {[%clk 0:00:08]} 1-0


[Site "https://www.chess.com"]

[Event "Titled Tuesday Blitz February 21 Late 2023"]
[White "Sokolovsky, Yahli"]
[Black "Swiercz, Dariusz"]
[WhiteFideId "2820242"]
[BlackFideId "1126881"]
[WhiteElo "2461"]
[BlackElo "2637"]
[Result "0-1"]
[Round "03"]
[TimeControl "180+2"]
[Date "2023.02.21"]
[WhiteClock "0:00:02"]
[BlackClock "0:00:06"]

1. b3 {[%clk 0:03:00]}  Nf6 {[%clk 0:02:57]} 2. Bb2 {[%clk 0:03:01]}  g6 {[%clk 0:02:58]} 3. d4 {[%clk 0:03:00]}  Bg7 {[%clk 0:02:58]} 4. Nf3 {[%clk 0:03:01]}  O-O {[%clk 0:02:59]} 5. e3 {[%clk 0:03:02]}  d6 {[%clk 0:02:57]} 6. Be2 {[%clk 0:03:01]}  b6 {[%clk 0:02:58]} 7. O-O {[%clk 0:03:01]}  Bb7 {[%clk 0:02:59]} 8. c4 {[%clk 0:03:01]}  Nbd7 {[%clk 0:02:59]} 9. Nc3 {[%clk 0:02:59]}  Ne4 {[%clk 0:02:59]} 10. Qc2 {[%clk 0:02:53]}  Nxc3 {[%clk 0:02:59]} 11. Bxc3 {[%clk 0:02:54]}  e6 {[%clk 0:02:59]} 12. Rfd1 {[%clk 0:02:42]}  a5 {[%clk 0:02:59]} 13. d5 {[%clk 0:02:25]}  Bxc3 {[%clk 0:02:57]} 14. Qxc3 {[%clk 0:02:26]}  e5 {[%clk 0:02:57]} 15. e4 {[%clk 0:02:04]}  Nc5 {[%clk 0:02:43]} 16. Bd3 {[%clk 0:02:04]}  Bc8 {[%clk 0:02:43]} 17. Nd2 {[%clk 0:01:56]}  f5 {[%clk 0:02:42]} 18. Re1 {[%clk 0:01:44]}  Qh4 {[%clk 0:02:30]} 19. exf5 {[%clk 0:01:22]}  Bxf5 {[%clk 0:02:27]} 20. Bxf5 {[%clk 0:01:04]}  Rxf5 {[%clk 0:02:26]} 21. Qg3 {[%clk 0:00:54]}  Qh6 {[%clk 0:01:58]} 22. Ne4 {[%clk 0:00:49]}  Nxe4 {[%clk 0:01:58]} 23. Rxe4 {[%clk 0:00:50]}  Qd2 {[%clk 0:01:59]} 24. f3 {[%clk 0:00:38]}  a4 {[%clk 0:01:52]} 25. Qe1 {[%clk 0:00:26]}  Qb2 {[%clk 0:01:39]} 26. Qc1 {[%clk 0:00:23]}  Qxc1+ {[%clk 0:01:06]} 27. Rxc1 {[%clk 0:00:24]}  axb3 {[%clk 0:01:06]} 28. axb3 {[%clk 0:00:25]}  Ra2 {[%clk 0:01:07]} 29. b4 {[%clk 0:00:17]}  Rd2 {[%clk 0:00:47]} 30. Ra1 {[%clk 0:00:10]}  Kg7 {[%clk 0:00:39]} 31. Ree1 {[%clk 0:00:09]}  Rf4 {[%clk 0:00:37]} 32. Rec1 {[%clk 0:00:07]}  Rb2 {[%clk 0:00:33]} 33. Ra7 {[%clk 0:00:05]}  Rf7 {[%clk 0:00:32]} 34. b5 {[%clk 0:00:03]}  h5 {[%clk 0:00:21]} 35. h4 {[%clk 0:00:03]}  Kf6 {[%clk 0:00:14]} 36. Kh2 {[%clk 0:00:04]}  Rg7 {[%clk 0:00:12]} 37. Kh3 {[%clk 0:00:04]}  g5 {[%clk 0:00:08]} 38. hxg5+ {[%clk 0:00:04]}  Rxg5 {[%clk 0:00:09]} 39. Rg1 {[%clk 0:00:03]}  Rg7 {[%clk 0:00:09]} 40. g4 {[%clk 0:00:03]}  Rb3 {[%clk 0:00:06]} 41. Rg3 {[%clk 0:00:01]}  h4 {[%clk 0:00:05]} 42. Rg2 {[%clk 0:00:01]}  Rxf3+ {[%clk 0:00:05]} 43. Kh2 {[%clk 0:00:02]}  Rc3 {[%clk 0:00:05]} 44. g5+ {[%clk 0:00:02]}  Kg6 {[%clk 0:00:05]} 45. Rg4 {[%clk 0:00:01]}  h3 {[%clk 0:00:05]} 46. Rg3 {[%clk 0:00:01]}  Rxg3 {[%clk 0:00:04]} 47. Kxg3 {[%clk 0:00:02]}  Rh7 {[%clk 0:00:05]} 48. Kh2 {[%clk 0:00:02]}  Kxg5 {[%clk 0:00:06]} 49. Ra3 {[%clk 0:00:02]}  Kf4 {[%clk 0:00:06]} 50. Rd3 {[%clk 0:00:02]}  e4 {[%clk 0:00:06]} 51. Rg3 {[%clk 0:00:02]}  e3 {[%clk 0:00:06]} 52. Rg8 {[%clk 0:00:03]}  e2 {[%clk 0:00:06]} 53. Re8 {[%clk 0:00:03]}  Kf3 {[%clk 0:00:07]} 54. Kg1 {[%clk 0:00:02]}  Rh4 {[%clk 0:00:06]} 55. c5 {[%clk 0:00:01]}  Re4 {[%clk 0:00:05]} 56. Rf8+ {[%clk 0:00:02]}  Ke3 {[%clk 0:00:06]} 0-1


[Site "https://www.chess.com"]

[Event "Titled Tuesday Blitz February 21 Late 2023"]
[White "Livaic, Leon"]
[Black "Darini, Pouria"]
[WhiteFideId "14531534"]
[BlackFideId "12502200"]
[WhiteElo "2579"]
[BlackElo "2401"]
[Result "1/2-1/2"]
[Round "03"]
[TimeControl "180+2"]
[Date "2023.02.21"]
[WhiteClock "0:00:25"]
[BlackClock "0:00:26"]

1. d4 {[%clk 0:03:00]}  Nf6 {[%clk 0:02:59]} 2. Bg5 {[%clk 0:03:01]}  d5 {[%clk 0:02:57]} 3. Bxf6 {[%clk 0:03:01]}  exf6 {[%clk 0:02:58]} 4. e3 {[%clk 0:03:00]}  Bd6 {[%clk 0:02:58]} 5. c4 {[%clk 0:02:59]}  dxc4 {[%clk 0:02:58]} 6. Bxc4 {[%clk 0:03:00]}  O-O {[%clk 0:02:58]} 7. Nc3 {[%clk 0:03:00]}  f5 {[%clk 0:02:58]} 8. Nge2 {[%clk 0:02:58]}  Nd7 {[%clk 0:02:56]} 9. O-O {[%clk 0:02:56]}  Nf6 {[%clk 0:02:57]} 10. g3 {[%clk 0:02:53]}  a6 {[%clk 0:02:55]} 11. a3 {[%clk 0:02:47]}  Qe7 {[%clk 0:02:52]} 12. Nd5 {[%clk 0:02:27]}  Nxd5 {[%clk 0:02:51]} 13. Bxd5 {[%clk 0:02:28]}  Rd8 {[%clk 0:02:39]} 14. Bf3 {[%clk 0:02:24]}  c6 {[%clk 0:02:33]} 15. Qc2 {[%clk 0:02:17]}  g6 {[%clk 0:02:26]} 16. Rfb1 {[%clk 0:02:14]}  a5 {[%clk 0:02:26]} 17. Nc3 {[%clk 0:02:12]}  h5 {[%clk 0:02:17]} 18. Rd1 {[%clk 0:02:00]}  h4 {[%clk 0:02:13]} 19. d5 {[%clk 0:01:53]}  hxg3 {[%clk 0:02:09]} 20. hxg3 {[%clk 0:01:53]}  c5 {[%clk 0:01:40]} 21. Nb5 {[%clk 0:01:52]}  Be5 {[%clk 0:01:10]} 22. a4 {[%clk 0:01:44]}  Qg5 {[%clk 0:01:02]} 23. Qxc5 {[%clk 0:01:19]}  Bd7 {[%clk 0:00:42]} 24. Qc2 {[%clk 0:00:41]}  Rac8 {[%clk 0:00:41]} 25. Qe2 {[%clk 0:00:37]}  Kg7 {[%clk 0:00:34]} 26. Nc3 {[%clk 0:00:31]}  Rh8 {[%clk 0:00:32]} 27. Kg2 {[%clk 0:00:32]}  f4 {[%clk 0:00:32]} 28. exf4 {[%clk 0:00:26]}  Bxf4 {[%clk 0:00:11]} 29. Rh1 {[%clk 0:00:24]}  Be5 {[%clk 0:00:03]} 30. Ne4 {[%clk 0:00:24]}  Qe7 {[%clk 0:00:02]} 31. Rxh8 {[%clk 0:00:18]}  Rxh8 {[%clk 0:00:03]} 32. Rh1 {[%clk 0:00:17]}  Rxh1 {[%clk 0:00:03]} 33. Kxh1 {[%clk 0:00:18]}  Bf5 {[%clk 0:00:04]} 34. Kg2 {[%clk 0:00:13]}  Bxe4 {[%clk 0:00:03]} 35. Qxe4 {[%clk 0:00:09]}  Qd6 {[%clk 0:00:03]} 36. b3 {[%clk 0:00:09]}  b6 {[%clk 0:00:04]} 37. Qc4 {[%clk 0:00:09]}  Bf6 {[%clk 0:00:04]} 38. Be2 {[%clk 0:00:10]}  Be7 {[%clk 0:00:04]} 39. Qe4 {[%clk 0:00:10]}  Qf6 {[%clk 0:00:04]} 40. Bc4 {[%clk 0:00:09]}  Bc5 {[%clk 0:00:04]} 41. f4 {[%clk 0:00:09]}  Qb2+ {[%clk 0:00:04]} 42. Kh3 {[%clk 0:00:09]}  Qa1 {[%clk 0:00:04]} 43. Qe5+ {[%clk 0:00:10]}  Qxe5 {[%clk 0:00:05]} 44. fxe5 {[%clk 0:00:10]}  Bd4 {[%clk 0:00:05]} 45. e6 {[%clk 0:00:11]}  fxe6 {[%clk 0:00:06]} 46. dxe6 {[%clk 0:00:12]}  Kf6 {[%clk 0:00:07]} 47. g4 {[%clk 0:00:12]}  Bc5 {[%clk 0:00:07]} 48. Kg2 {[%clk 0:00:12]}  g5 {[%clk 0:00:08]} 49. Kf3 {[%clk 0:00:13]}  Ke5 {[%clk 0:00:08]} 50. Ke2 {[%clk 0:00:12]}  Kd4 {[%clk 0:00:08]} 51. Kd2 {[%clk 0:00:11]}  Be7 {[%clk 0:00:09]} 52. Kc2 {[%clk 0:00:12]}  Bb4 {[%clk 0:00:09]} 53. Bb5 {[%clk 0:00:12]}  Be7 {[%clk 0:00:10]} 54. Bc4 {[%clk 0:00:11]}  Bb4 {[%clk 0:00:10]} 55. Kd1 {[%clk 0:00:12]}  Be7 {[%clk 0:00:10]} 56. Ke2 {[%clk 0:00:13]}  Bb4 {[%clk 0:00:10]} 57. Kf3 {[%clk 0:00:13]}  Be7 {[%clk 0:00:11]} 58. Ke2 {[%clk 0:00:12]}  Bb4 {[%clk 0:00:11]} 59. Kf3 {[%clk 0:00:09]}  Bd6 {[%clk 0:00:12]} 60. Ke2 {[%clk 0:00:10]}  Ke4 {[%clk 0:00:12]} 61. Kd2 {[%clk 0:00:09]}  Bc5 {[%clk 0:00:12]} 62. Be2 {[%clk 0:00:08]}  Kd4 {[%clk 0:00:09]} 63. Bc4 {[%clk 0:00:07]}  Bb4+ {[%clk 0:00:08]} 64. Ke2 {[%clk 0:00:07]}  Ke4 {[%clk 0:00:09]} 65. Kf2 {[%clk 0:00:07]}  Kf4 {[%clk 0:00:08]} 66. Be2 {[%clk 0:00:08]}  Ke4 {[%clk 0:00:07]} 67. Bf3+ {[%clk 0:00:06]}  Kd4 {[%clk 0:00:07]} 68. e7 {[%clk 0:00:05]}  Bxe7 {[%clk 0:00:07]} 69. Be2 {[%clk 0:00:06]}  Bc5 {[%clk 0:00:07]} 70. Bc4 {[%clk 0:00:06]}  Ke4+ {[%clk 0:00:06]} 71. Ke2 {[%clk 0:00:06]}  Kf4 {[%clk 0:00:06]} 72. Be6 {[%clk 0:00:07]}  Ke5 {[%clk 0:00:07]} 73. Bf5 {[%clk 0:00:07]}  Kd4 {[%clk 0:00:08]} 74. Kd2 {[%clk 0:00:07]}  Bd6 {[%clk 0:00:08]} 75. Kc2 {[%clk 0:00:08]}  Bb4 {[%clk 0:00:09]} 76. Bd7 {[%clk 0:00:09]}  Ke3 {[%clk 0:00:10]} 77. Bf5 {[%clk 0:00:10]}  Ke2 {[%clk 0:00:10]} 78. Bd7 {[%clk 0:00:10]}  Ke3 {[%clk 0:00:11]} 79. Bf5 {[%clk 0:00:11]}  Kd4 {[%clk 0:00:11]} 80. Bd7 {[%clk 0:00:12]}  Bc5 {[%clk 0:00:12]} 81. Bf5 {[%clk 0:00:12]}  Bd6 {[%clk 0:00:13]} 82. Bd7 {[%clk 0:00:13]}  Bf4 {[%clk 0:00:13]} 83. Bf5 {[%clk 0:00:14]}  Be5 {[%clk 0:00:14]} 84. Bd7 {[%clk 0:00:14]}  Kd5 {[%clk 0:00:14]} 85. Bf5 {[%clk 0:00:15]}  Kd4 {[%clk 0:00:15]} 86. Bd7 {[%clk 0:00:14]}  Bd6 {[%clk 0:00:15]} 87. Bf5 {[%clk 0:00:15]}  Bc5 {[%clk 0:00:16]} 88. Bd7 {[%clk 0:00:15]}  Ke5 {[%clk 0:00:17]} 89. Bf5 {[%clk 0:00:16]}  Kd4 {[%clk 0:00:17]} 90. Bd7 {[%clk 0:00:16]}  Ke3 {[%clk 0:00:18]} 91. Bf5 {[%clk 0:00:17]}  Bb4 {[%clk 0:00:18]} 92. Bd7 {[%clk 0:00:17]}  Bd6 {[%clk 0:00:18]} 93. Bf5 {[%clk 0:00:18]}  Kd4 {[%clk 0:00:19]} 94. Bd7 {[%clk 0:00:19]}  Bf4 {[%clk 0:00:19]} 95. Bf5 {[%clk 0:00:19]}  Kd5 {[%clk 0:00:20]} 96. Bd7 {[%clk 0:00:20]}  Kd6 {[%clk 0:00:21]} 97. Bf5 {[%clk 0:00:21]}  Ke5 {[%clk 0:00:21]} 98. Kd3 {[%clk 0:00:21]}  Kd5 {[%clk 0:00:22]} 99. Be4+ {[%clk 0:00:21]}  Kc5 {[%clk 0:00:23]} 100. Bf5 {[%clk 0:00:22]}  Kb4 {[%clk 0:00:23]} 101. Kc2 {[%clk 0:00:22]}  Be5 {[%clk 0:00:24]} 102. Bd7 {[%clk 0:00:22]}  Bf4 {[%clk 0:00:24]} 103. Bb5 {[%clk 0:00:22]}  Be5 {[%clk 0:00:23]} 104. Bd7 {[%clk 0:00:23]}  Bd6 {[%clk 0:00:24]} 105. Bb5 {[%clk 0:00:23]}  Kc5 {[%clk 0:00:24]} 106. Bd7 {[%clk 0:00:24]}  Kd4 {[%clk 0:00:25]} 107. Bb5 {[%clk 0:00:24]}  Bb4 {[%clk 0:00:26]} 108. Bd7 {[%clk 0:00:25]} 1/2-1/2


[Site "https://www.chess.com"]

[Event "Titled Tuesday Blitz February 21 Late 2023"]
[White "Fiorito, Joaquin"]
[Black "Melkumyan, Hrant"]
[WhiteFideId "180173"]
[BlackFideId "13302485"]
[WhiteElo "2405"]
[BlackElo "2645"]
[Result "0-1"]
[Round "03"]
[TimeControl "180+2"]
[Date "2023.02.21"]
[WhiteClock "0:00:08"]
[BlackClock "0:01:26"]

1. d4 {[%clk 0:03:00]}  d5 {[%clk 0:02:58]} 2. Nc3 {[%clk 0:03:01]}  Nf6 {[%clk 0:02:56]} 3. Bf4 {[%clk 0:03:01]}  Bf5 {[%clk 0:02:55]} 4. f3 {[%clk 0:03:01]}  h6 {[%clk 0:02:51]} 5. g4 {[%clk 0:02:59]}  Bh7 {[%clk 0:02:47]} 6. Qd2 {[%clk 0:02:57]}  e6 {[%clk 0:02:47]} 7. h4 {[%clk 0:02:57]}  a6 {[%clk 0:02:40]} 8. e3 {[%clk 0:02:54]}  c5 {[%clk 0:02:39]} 9. Nh3 {[%clk 0:02:50]}  Nc6 {[%clk 0:02:39]} 10. Bg3 {[%clk 0:02:37]}  Rc8 {[%clk 0:02:34]} 11. Nf4 {[%clk 0:02:33]}  cxd4 {[%clk 0:02:24]} 12. exd4 {[%clk 0:02:33]}  Qb6 {[%clk 0:02:24]} 13. O-O-O {[%clk 0:02:22]}  Nb4 {[%clk 0:02:13]} 14. Qf2 {[%clk 0:00:47]}  Bxc2 {[%clk 0:01:59]} 15. Rd2 {[%clk 0:00:47]}  Bh7 {[%clk 0:01:49]} 16. Kd1 {[%clk 0:00:43]}  Nxa2 {[%clk 0:01:37]} 17. Bb5+ {[%clk 0:00:15]}  axb5 {[%clk 0:01:36]} 18. Nxa2 {[%clk 0:00:16]}  Qa5 {[%clk 0:01:27]} 19. Nc1 {[%clk 0:00:15]}  Bb4 {[%clk 0:01:27]} 20. Re2 {[%clk 0:00:08]}  Rxc1+ {[%clk 0:01:26]} 0-1


[Site "https://www.chess.com"]

[Event "Titled Tuesday Blitz February 21 Late 2023"]
[White "Richter, Paul"]
[Black "Bernadskiy, Vitaliy"]
[WhiteFideId "2046350"]
[BlackFideId "14100371"]
[WhiteElo "2171"]
[BlackElo "2592"]
[Result "0-1"]
[Round "03"]
[TimeControl "180+2"]
[Date "2023.02.21"]
[WhiteClock "0:00:01"]
[BlackClock "0:00:06"]

1. e4 {[%clk 0:03:00]}  e5 {[%clk 0:02:58]} 2. Nf3 {[%clk 0:03:00]}  Nc6 {[%clk 0:02:59]} 3. Bb5 {[%clk 0:03:00]}  a6 {[%clk 0:02:58]} 4. Ba4 {[%clk 0:03:00]}  Nf6 {[%clk 0:02:58]} 5. d3 {[%clk 0:03:00]}  Bc5 {[%clk 0:02:57]} 6. c3 {[%clk 0:03:00]}  d6 {[%clk 0:02:53]} 7. O-O {[%clk 0:02:59]}  O-O {[%clk 0:02:52]} 8. Nbd2 {[%clk 0:02:56]}  h6 {[%clk 0:02:51]} 9. h3 {[%clk 0:02:49]}  Ba7 {[%clk 0:02:49]} 10. Re1 {[%clk 0:02:48]}  Ne7 {[%clk 0:02:48]} 11. Nf1 {[%clk 0:02:47]}  Ng6 {[%clk 0:02:48]} 12. Ng3 {[%clk 0:02:47]}  Be6 {[%clk 0:02:42]} 13. Bb3 {[%clk 0:02:45]}  Re8 {[%clk 0:02:34]} 14. Nh2 {[%clk 0:02:19]}  d5 {[%clk 0:02:29]} 15. Qf3 {[%clk 0:02:15]}  Qd7 {[%clk 0:02:09]} 16. Nh5 {[%clk 0:01:03]}  Nxh5 {[%clk 0:02:01]} 17. Qxh5 {[%clk 0:01:04]}  dxe4 {[%clk 0:01:52]} 18. dxe4 {[%clk 0:01:04]}  Bxb3 {[%clk 0:01:52]} 19. axb3 {[%clk 0:01:04]}  Qe6 {[%clk 0:01:51]} 20. b4 {[%clk 0:00:57]}  Rad8 {[%clk 0:01:50]} 21. Ng4 {[%clk 0:00:47]}  Nf4 {[%clk 0:01:44]} 22. Bxf4 {[%clk 0:00:39]}  exf4 {[%clk 0:01:45]} 23. Re2 {[%clk 0:00:14]}  Rd3 {[%clk 0:01:01]} 24. Rae1 {[%clk 0:00:10]}  f3 {[%clk 0:01:01]} 25. gxf3 {[%clk 0:00:10]}  Red8 {[%clk 0:00:58]} 26. Kg2 {[%clk 0:00:10]}  Rd2 {[%clk 0:00:46]} 27. Qf5 {[%clk 0:00:06]}  Qe7 {[%clk 0:00:37]} 28. e5 {[%clk 0:00:06]}  R2d5 {[%clk 0:00:31]} 29. f4 {[%clk 0:00:06]}  Kh8 {[%clk 0:00:19]} 30. Kh2 {[%clk 0:00:06]}  Rd3 {[%clk 0:00:15]} 31. Rg1 {[%clk 0:00:06]}  Qh4 {[%clk 0:00:14]} 32. Rg3 {[%clk 0:00:05]}  R3d5 {[%clk 0:00:12]} 33. Qe4 {[%clk 0:00:05]}  c6 {[%clk 0:00:11]} 34. Qf3 {[%clk 0:00:04]}  Rd1 {[%clk 0:00:09]} 35. Qg2 {[%clk 0:00:04]}  R8d3 {[%clk 0:00:07]} 36. Ne3 {[%clk 0:00:02]}  R1d2 {[%clk 0:00:05]} 37. Rxd2 {[%clk 0:00:01]}  Rxd2 {[%clk 0:00:06]} 0-1


[Site "https://www.chess.com"]